bitfinex/quotes_ETHUSD_20241108
["timestamp","ask_amount","ask_price","bid_price","bid_amount"]
[1731094453148,0.7661,2953.9,2952.8,4.13555293]
[1731094453553,0.7661,2953.9,2953.1,3.95335987]
[1731094454052,0.7661,2953.9,2953.2,3.0]
[1731094456509,0.01,2953.7,2952.8,1.23781305]
[1731094456668,0.01,2953.7,2952.8,5.19117292]
[1731094457403,0.01,2953.5,2952.8,4.3042128]
[1731094457566,0.788,2953.6,2952.8,0.35085293]
[1731094457762,0.788,2953.6,2952.9,3.0]
[1731094458014,0.01,2953.5,2952.9,3.0]
[1731094458190,0.01,2953.5,2952.8,0.35085293]
[1731094458600,0.01,2954.6,2952.8,0.35085293]
[1731094458601,0.02,2953.3,2952.8,0.35085293]
[1731094459270,0.01,2953.0,2952.8,0.35085293]
[1731094459469,0.01,2953.0,2952.5,0.1369959]
[1731094459687,0.01,2953.2,2952.6,0.06772451]
[1731094460004,0.01,2953.0,2952.6,0.06772451]
[1731094460174,0.01,2953.2,2952.5,0.1369959]
[1731094460363,0.01,2953.2,2952.6,0.06772451]
[1731094460900,0.01,2953.2,2952.5,0.1369959]
[1731094461105,0.01,2953.3,2952.5,0.1369959]
[1731094461106,0.01,2953.0,2952.5,0.1369959]
[1731094461411,0.7945,2952.6,2952.5,0.1369959]
[1731094461824,0.7845,2952.6,2952.5,0.1369959]
[1731094463619,0.8058,2952.9,2952.5,0.0869959]
[1731094464095,0.01,2952.6,2952.5,0.0869959]
[1731094464497,0.02,2952.6,2952.5,0.0869959]
[1731094466590,0.01,2952.6,2952.5,0.0869959]
[1731094466786,0.02,2952.6,2952.5,0.0869959]
[1731094466988,0.8425,2952.6,2952.5,0.0869959]
[1731094468988,0.8425,2952.6,2952.5,0.0369959]
[1731094469923,0.01,2952.9,2952.5,0.0369959]
[1731094471011,0.8173,2953.0,2952.5,0.0369959]
[1731094471391,0.01,2952.9,2952.5,0.0369959]
[1731094472014,0.8073,2953.0,2952.5,0.0369959]
[1731094472217,0.01,2953.1,2952.5,0.0369959]
[1731094472727,0.7761,2953.3,2952.6,0.06772258]
[1731094472933,0.7761,2953.3,2952.7,0.825]
[1731094473115,0.01,2953.2,2952.7,0.825]
[1731094473318,0.02,2953.5,2952.7,0.825]
[1731094473503,0.01,2953.2,2952.7,0.825]
[1731094473698,0.01,2953.4,2952.7,0.825]
[1731094473901,0.7861,2953.6,2952.8,0.06771616]
[1731094474189,19.93,2955.9,2952.8,0.06771616]
[1731094474190,0.8314,2954.1,2953.3,3.95335987]
[1731094474392,0.02,2954.1,2953.4,3.0]
[1731094474594,0.01,2954.1,2953.4,3.0]
[1731094475593,0.02,2954.3,2953.4,3.0]
[1731094475790,0.01,2954.1,2953.5,0.06769828]
[1731094476105,0.01,2954.3,2953.5,0.06769828]
[1731094476308,0.02,2954.3,2953.4,3.0]
[1731094476493,0.01,2953.9,2953.1,0.85598708]
[1731094477413,0.01,2953.9,2953.1,0.7531]
[1731094479833,0.01,2953.9,2953.3,3.95335987]
[1731094481299,0.01,2954.2,2953.4,0.06770522]
[1731094481622,0.01,2954.1,2953.4,3.0]
[1731094482058,0.01,2954.0,2953.4,3.0]
[1731094482649,0.01,2954.0,2953.4,3.06770454]
[1731094483140,0.01,2954.1,2953.4,3.0]
[1731094483439,0.01,2953.9,2953.4,3.06770454]
[1731094483605,0.01,2953.9,2953.4,0.06770454]
[1731094485326,0.02,2954.1,2953.4,0.06770454]
[1731094485528,0.01,2954.3,2953.4,3.06770454]
[1731094485728,0.7887,2954.7,2954.1,3.95335987]
[1731094486019,0.01,2954.5,2954.1,3.95335987]
[1731094486213,0.7987,2954.7,2954.1,3.95335987]
[1731094486440,0.7887,2954.7,2954.1,3.95335987]
[1731094486749,0.7887,2954.7,2954.2,0.06768606]
[1731094487143,0.01,2954.9,2954.2,3.87938606]
[1731094487556,0.81336892,2955.3,2954.2,3.87938606]
[1731094487855,0.7626,2955.3,2954.5,3.95335987]
[1731094488215,0.7898,2955.7,2954.9,3.95335987]
[1731094488552,0.7898,2955.7,2953.4,3.556]
[1731094488553,0.01,2956.9,2955.8,0.7747]
[1731094488749,0.01,2956.9,2955.9,3.0]
[1731094488950,0.01,2956.6,2955.9,3.0]
[1731094489644,4.65185608,2958.2,2955.5,3.0]
[1731094489645,0.01,2956.2,2955.5,3.0]
[1731094491822,0.7617,2956.5,2955.8,3.95335987]
[1731094492167,0.01,2956.4,2955.8,3.95335987]
[1731094494265,0.01,2956.3,2955.4,0.7763]
[1731094494422,0.01,2956.2,2955.4,3.7763]
[1731094495665,0.7759,2956.1,2955.4,3.0]
[1731094498428,0.7759,2956.1,2955.5,0.06765552]
[1731094498939,0.01,2956.3,2955.7,3.95335987]
[1731094499146,0.01,2956.3,2955.8,3.06764662]
[1731094499369,0.02,2956.3,2955.0,0.90159079]
[1731094499693,0.788,2956.5,2955.4,3.0]
[1731094499694,0.02,2956.1,2955.4,3.0]
[1731094503120,0.02,2956.1,2955.0,0.90159079]
[1731094503254,0.02,2955.9,2955.0,0.90159079]
[1731094503899,0.01,2955.9,2955.1,0.06765809]
[1731094504386,0.01,2956.4,2955.2,1.06863968]
[1731094504572,0.02,2956.8,2955.2,1.06863968]
[1731094504760,0.8054,2956.9,2955.5,0.8221]
[1731094504956,0.8054,2956.9,2955.4,0.55]
[1731094504957,0.8054,2956.9,2955.7,0.8221]
[1731094505162,0.8054,2956.9,2956.1,3.0]
[1731094505384,0.8054,2956.9,2955.7,0.8221]
[1731094505703,0.01,2956.7,2955.7,0.8221]
[1731094505913,0.8054,2956.9,2955.8,0.06763717]
[1731094506060,0.8054,2956.9,2955.7,0.8221]
[1731094506255,0.01,2956.7,2955.7,0.92189703]
[1731094506493,0.8054,2956.9,2955.7,0.92189703]
[1731094506855,0.8054,2956.9,2955.8,0.06763568]
[1731094507061,0.8054,2956.9,2955.7,0.92189703]
[1731094507062,0.8054,2956.9,2955.7,1.44053671]
[1731094507675,0.8054,2956.9,2955.8,0.0676369]
[1731094508007,0.8054,2956.9,2955.8,0.51863968]
[1731094508189,0.8054,2956.9,2955.7,0.92189703]
[1731094508391,0.8054,2956.9,2955.8,0.55]
[1731094508701,0.01,2956.8,2955.7,0.92189703]
[1731094509000,0.02,2956.7,2955.9,3.0]
[1731094509205,0.02,2956.7,2955.7,0.8221]
[1731094509206,0.8254,2956.9,2956.0,0.06764472]
[1731094509359,0.01,2956.8,2956.0,3.06764472]
[1731094509700,0.01,2956.8,2955.7,0.8221]
[1731094510208,0.8154,2956.9,2955.8,0.0676385]
[1731094510511,0.01,2956.8,2955.7,1.34073968]
[1731094510662,0.8154,2956.9,2955.7,1.34073968]
[1731094512010,0.8154,2956.9,2955.8,0.55]
[1731094512202,0.8054,2956.9,2955.8,0.55]
[1731094512392,0.8054,2956.9,2956.3,3.0]
[1731094512589,0.8054,2956.9,2956.4,0.06763546]
[1731094513190,0.8054,2956.9,2955.9,0.06763481]
[1731094513593,0.01,2958.0,2955.9,0.06763481]
[1731094513594,0.7713,2957.3,2956.5,3.0]
[1731094513914,0.7713,2957.3,2956.1,0.8046]
[1731094513915,0.7813,2957.3,2956.2,0.55]
[1731094514066,0.01,2957.2,2956.2,0.55]
[1731094514273,0.823,2956.9,2955.5,1.3143]
[1731094514977,0.823,2956.9,2955.5,1.83293968]
[1731094515180,0.01,2956.8,2955.5,1.28293968]
[1731094515578,0.02,2956.8,2955.5,1.28293968]
[1731094515993,0.01,2956.6,2955.5,1.38224652]
[1731094516312,0.823,2956.5,2955.5,1.28293968]
[1731094516494,0.823,2956.5,2955.5,0.7643]
[1731094516702,0.01,2956.4,2955.6,0.06764391]
[1731094517008,0.01,2956.4,2955.9,3.0]
[1731094517211,0.01,2956.4,2956.0,0.0676488]
[1731094517567,0.823,2956.5,2956.0,0.0676488]
[1731094517771,0.01,2956.4,2956.0,0.0676488]
[1731094517980,0.823,2956.5,2955.6,0.0676488]
[1731094518594,0.823,2956.5,2955.8,3.0]
[1731094519111,0.823,2956.5,2955.5,0.7643]
[1731094519685,0.7602,2956.8,2955.6,0.61764517]
[1731094520010,0.7602,2956.8,2955.6,0.55]
[1731094520565,0.01,2956.7,2955.5,0.7643]
[1731094521101,0.7602,2956.8,2955.6,0.61764046]
[1731094521271,0.7602,2956.8,2956.1,3.0]
[1731094521473,0.7602,2956.8,2955.6,0.55]
[1731094521676,0.7502,2956.8,2955.6,0.55]
[1731094521893,0.7602,2956.8,2955.6,0.55]
[1731094522098,0.7502,2956.8,2955.6,0.55]
[1731094522298,0.01,2957.4,2956.5,3.0]
[1731094522617,0.01,2957.4,2956.5,0.8272]
[1731094523311,0.01,2957.4,2955.8,4.07463968]
[1731094523312,0.01,2957.3,2955.9,0.8057]
[1731094523511,0.01,2957.4,2955.9,1.32433968]
[1731094523713,0.01,2957.4,2956.7,3.0]
[1731094523914,0.01,2957.3,2955.9,1.32433968]
[1731094524071,0.01,2956.9,2955.8,0.10038506]
[1731094524273,0.01,2956.9,2955.6,0.8057]
[1731094524487,0.01,2956.3,2955.2,0.10021456]
[1731094524714,0.02,2956.3,2955.1,1.17111555]
[1731094525034,0.02,2956.3,2955.1,2.04085792]
[1731094525180,0.02,2956.3,2955.1,2.13879579]
[1731094525376,0.7733,2956.2,2955.2,0.51863968]
[1731094527098,0.7733,2956.2,2955.3,0.0676503]
[1731094527299,0.7733,2956.2,2955.4,0.51863968]
[1731094527504,0.7733,2956.2,2955.5,0.0676505]
[1731094527702,0.01,2956.8,2955.6,1.32553968]
[1731094527944,0.01,2956.8,2955.7,0.06763805]
[1731094528299,0.01,2956.9,2955.7,0.58627773]
[1731094528937,0.01,2956.9,2955.8,0.51863968]
[1731094529143,0.01,2957.0,2956.1,3.0]
[1731094529297,0.01,2957.0,2956.2,0.06763233]
[1731094529502,0.01,2957.3,2955.9,0.55]
[1731094529701,0.01,2957.5,2955.9,0.55]
[1731094529702,0.02,2957.5,2956.2,0.51863968]
[1731094529927,0.01,2957.5,2956.3,0.06762184]
[1731094530155,0.01,2957.5,2956.4,0.51863968]
[1731094530306,0.02,2957.9,2957.0,3.0]
[1731094530619,0.7526,2957.3,2956.4,0.51863968]
[1731094531015,0.7526,2957.3,2956.5,0.06762394]
[1731094531436,0.7526,2957.3,2956.5,0.51863968]
[1731094532727,0.7526,2957.3,2956.4,0.10088177]
[1731094532945,0.7526,2957.3,2955.0,12.47]
[1731094532946,0.01,2957.2,2956.0,0.8028]
[1731094533114,0.7645,2957.1,2956.0,0.8028]
[1731094533517,0.7545,2956.9,2955.9,0.10270349]
[1731094533703,0.7545,2956.9,2955.8,0.51863968]
[1731094533906,0.7545,2956.9,2955.9,0.58627629]
[1731094534534,0.7545,2956.9,2956.0,0.51863968]
[1731094534747,0.01,2957.6,2956.1,0.8044]
[1731094534952,0.01,2957.6,2956.2,0.55]
[1731094535322,0.01,2957.7,2956.3,0.06761805]
[1731094535551,0.01,2957.7,2956.4,0.06761805]
[1731094535845,0.01,2957.6,2956.3,0.06761807]
[1731094536056,0.01,2957.6,2956.2,0.55]
[1731094536057,0.01,2957.6,2956.9,3.0]
[1731094536546,0.01,2957.6,2956.2,0.55]
[1731094536722,0.01,2957.6,2956.3,0.06761809]
[1731094537662,0.01,2957.6,2956.2,0.64926467]
[1731094537663,0.01,2957.5,2956.2,0.09926467]
[1731094537877,0.8135,2957.4,2956.1,0.8044]
[1731094538022,0.8135,2957.4,2956.2,0.51863968]
[1731094538223,0.8135,2957.4,2956.3,0.06762355]
[1731094538497,0.8135,2957.4,2956.3,0.58626323]
[1731094539167,0.8135,2957.4,2956.5,3.0]
[1731094539326,0.8135,2957.4,2956.3,0.58626323]
[1731094539327,0.8135,2957.4,2956.6,0.06762187]
[1731094540971,0.8135,2957.4,2956.7,0.06762273]
[1731094541138,0.8135,2957.4,2956.3,0.51863968]
[1731094541342,0.8135,2957.4,2956.1,0.90584025]
[1731094542269,0.792,2957.2,2956.1,0.10144025]
[1731094542569,0.01,2958.1,2955.8,0.8154]
[1731094542570,0.8287,2957.1,2955.8,0.8154]
[1731094543073,0.8087,2956.3,2955.6,0.35276711]
[1731094543735,0.8087,2956.3,2955.7,0.06764956]
[1731094544079,0.01,2956.9,2955.7,0.06764957]
[1731094544435,0.01,2956.9,2955.6,0.4517026]
[1731094545382,0.01,2956.9,2955.7,0.06763552]
[1731094545555,0.01,2957.1,2955.7,0.06763552]
[1731094545728,0.01,2957.1,2955.8,0.7901]
[1731094545930,0.01,2957.1,2955.9,0.06763165]
[1731094546583,0.02,2956.9,2955.6,0.80285757]
[1731094546744,0.01,2956.7,2955.6,0.80285757]
[1731094546951,0.7132,2956.6,2955.6,0.80285757]
[1731094548056,0.7132,2956.4,2955.6,0.70392208]
[1731094548258,0.7132,2956.4,2955.6,0.35115497]
[1731094549054,0.01,2956.0,2955.6,0.35115497]
[1731094549356,0.7132,2955.9,2955.7,0.06764251]
[1731094549696,0.7132,2955.9,2955.4,0.35120477]
[1731094549903,0.02,2956.8,2955.5,0.0676556]
[1731094550111,0.02,2956.8,2955.5,0.8570556]
[1731094550393,0.01,2956.6,2955.5,0.8570556]
[1731094550759,0.01,2956.6,2955.5,0.7894]
[1731094551899,0.02,2956.3,2955.4,0.35120477]
[1731094552124,0.01,2956.1,2955.4,0.35120477]
[1731094552759,0.01,2956.1,2955.5,0.06765261]
[1731094552956,0.01,2956.3,2955.4,0.35120477]
[1731094554153,0.01,2956.0,2955.4,0.35120477]
[1731094554453,0.01,2955.9,2955.0,0.35287534]
[1731094554684,0.01,2956.0,2955.0,0.35287534]
[1731094555969,0.01,2956.0,2955.3,3.0]
[1731094556300,0.01,2956.0,2955.0,0.35287534]
[1731094556601,0.01,2956.0,2955.3,3.0]
[1731094556758,0.01,2955.4,2955.0,0.35287534]
[1731094557659,0.01,2955.6,2955.1,0.0676726]
[1731094557860,0.01,2955.8,2955.0,0.35287534]
[1731094558464,0.01,2955.7,2955.0,3.35287534]
[1731094558662,0.01,2955.8,2955.1,0.06766655]
[1731094558864,0.01,2956.0,2955.1,3.0]
[1731094559093,0.01,2956.0,2955.2,0.06765644]
[1731094559410,0.01,2955.8,2955.1,3.0]
[1731094560002,0.01,2955.8,2955.0,0.35287534]
[1731094560166,0.01,2955.6,2955.0,0.35287534]
[1731094560393,0.01,2955.5,2955.0,0.35287534]
[1731094560579,0.01,2955.5,2954.8,0.35040701]
[1731094562019,0.02,2955.5,2954.8,0.35040701]
[1731094562230,0.01,2955.3,2954.9,0.06766874]
[1731094562720,0.01,2955.3,2954.3,0.85700508]
[1731094562721,0.01,2955.3,2954.7,3.0]
[1731094564187,0.01,2955.1,2954.5,3.0]
[1731094564597,0.01,2954.9,2954.5,3.0]
[1731094564793,0.01,2954.9,2954.4,0.35041281]
[1731094566504,0.02,2954.9,2954.4,0.35041281]
[1731094566888,0.01,2954.6,2954.4,0.35041281]
[1731094567229,0.01,2954.6,2954.0,1.06016108]
[1731094567603,0.01,2954.4,2954.1,0.06768683]
[1731094567814,0.01,2954.9,2953.8,1.1103695]
[1731094567815,0.01,2954.6,2953.8,1.1103695]
[1731094567991,0.01,2954.6,2953.8,0.70439648]
[1731094568195,0.01,2954.6,2954.0,3.0]
[1731094569042,0.01,2954.6,2953.8,0.70439648]
[1731094569327,0.01,2954.6,2954.0,3.0]
[1731094570008,0.01,2954.6,2953.8,0.70439648]
[1731094570504,0.01,2954.6,2954.0,3.0]
[1731094570835,0.01,2954.8,2954.0,3.0]
[1731094570992,0.01,2954.8,2954.1,0.0676868]
[1731094571544,0.01,2954.8,2953.8,0.70439648]
[1731094571909,0.01,2954.6,2953.8,0.70439648]
[1731094572112,0.01,2954.6,2954.0,3.0]
[1731094572642,0.01,2954.9,2953.8,0.70439648]
[1731094572643,0.01,2954.4,2953.8,0.70439648]
[1731094572946,0.01,2954.8,2953.9,0.06769281]
[1731094573093,0.01,2955.0,2953.9,0.7728]
[1731094573299,0.01,2955.0,2954.3,3.0]
[1731094573524,0.01,2955.0,2953.9,0.7728]
[1731094573698,0.01,2955.1,2953.9,1.17877302]
[1731094574130,0.01,2955.1,2954.5,3.0]
[1731094574637,0.01,2955.4,2953.9,1.17877302]
[1731094574638,0.01,2955.4,2954.6,0.8041]
[1731094574848,0.02,2955.4,2954.6,0.8041]
[1731094575706,0.01,2955.4,2954.6,0.8041]
[1731094576546,0.01,2955.6,2954.8,3.0]
[1731094576747,0.01,2955.6,2954.6,0.8041]
[1731094576937,0.01,2956.0,2954.9,0.40597302]
[1731094577136,0.01,2956.0,2954.7,0.55]
[1731094577453,0.01,2955.8,2954.6,0.90439079]
[1731094577608,0.01,2955.8,2954.7,0.40597302]
[1731094578009,0.01,2955.8,2954.6,0.90439079]
[1731094578010,0.02,2955.8,2954.6,0.90439079]
[1731094578207,0.02,2955.5,2954.6,0.10029079]
[1731094578413,0.01,2955.3,2954.3,0.09821415]
[1731094578608,0.01,2955.3,2953.9,0.7694]
[1731094579259,0.01,2955.3,2953.9,1.17537302]
[1731094579429,0.01,2955.3,2954.0,3.0]
[1731094580466,0.01,2955.0,2953.9,0.35301332]
[1731094580630,0.01,2954.8,2953.9,0.35301332]
[1731094580819,0.02,2954.8,2953.9,0.35301332]
[1731094581021,4.25449621,2957.0,2954.0,0.0676859]
[1731094581022,0.02,2955.0,2954.0,0.0676859]
[1731094581250,0.01,2955.0,2954.0,0.0676859]
[1731094581445,0.01,2955.0,2953.9,0.40597302]
[1731094581656,0.01,2954.9,2954.0,0.06768179]
[1731094581965,0.01,2954.9,2953.8,0.44978961]
[1731094581966,0.01,2954.8,2953.8,0.44978961]
[1731094583539,0.01,2954.7,2953.8,0.44978961]
[1731094583972,0.01,2954.7,2954.1,3.0]
[1731094584200,0.01,2954.7,2953.8,0.44978961]
[1731094587274,0.01,2954.7,2953.8,0.39978961]
[1731094590052,0.01,2954.8,2953.9,0.06768502]
[1731094590375,0.01,2955.0,2953.9,0.87448502]
[1731094590577,0.01,2954.9,2953.9,0.8068]
[1731094593865,0.01,2954.8,2953.8,0.39978961]
[1731094594101,0.01,2954.8,2953.8,0.3004619]
[1731094599277,0.01,2954.8,2953.9,3.0]
[1731094599480,0.01,2954.8,2953.8,0.3004619]
[1731094601127,0.01,2955.1,2954.1,3.0]
[1731094601308,0.01,2955.4,2954.2,0.7943]
[1731094601508,0.01,2955.4,2954.7,3.0]
[1731094601713,0.01,2955.4,2954.2,0.7943]
[1731094601945,0.01,2955.4,2954.3,0.06766977]
[1731094602313,0.01,2955.4,2954.2,0.7943]
[1731094602814,0.01,2955.4,2954.3,0.06766673]
[1731094603346,0.01,2955.4,2954.2,0.7943]
[1731094605048,0.01,2955.6,2954.2,0.7943]
[1731094605255,0.01,2955.7,2954.3,6.62366677]
[1731094605456,0.01,2955.7,2954.4,3.0]
[1731094607651,0.01,2955.3,2954.2,0.09800041]
[1731094607985,0.01,2955.3,2954.6,3.0]
[1731094608180,0.01,2955.3,2953.8,0.8142]
[1731094608338,0.01,2955.3,2953.8,0.91589913]
[1731094608741,0.01,2955.3,2953.9,3.556]
[1731094609577,0.01,2955.3,2953.8,1.32187215]
[1731094609578,0.01,2955.3,2954.0,6.556]
[1731094610167,0.01,2955.3,2954.6,3.0]
[1731094610537,0.01,2955.3,2954.1,3.0]
[1731094610741,0.01,2955.3,2954.0,6.556]
[1731094610982,0.01,2955.4,2954.6,3.0]
[1731094611144,0.02,2955.3,2954.1,3.0]
[1731094611342,0.02,2955.7,2954.6,3.0]
[1731094611565,0.01,2955.5,2954.4,7.3664]
[1731094611769,0.02,2955.7,2954.9,3.0]
[1731094611972,0.02,2955.7,2954.5,3.0]
[1731094612168,0.01,2956.1,2955.0,3.0]
[1731094612342,0.02,2956.2,2954.9,3.556]
[1731094612558,0.01,2955.9,2955.0,3.0]
[1731094612961,0.01,2955.9,2954.5,3.0]
[1731094614061,0.01,2955.9,2954.7,3.0]
[1731094615286,0.01,2955.9,2954.6,6.556]
[1731094615652,0.01,2955.9,2955.3,3.0]
[1731094616147,0.01,2955.9,2954.6,6.556]
[1731094616148,0.01,2955.9,2954.7,3.0]
[1731094616563,0.01,2955.9,2955.3,3.0]
[1731094617545,0.01,2955.9,2954.7,3.0]
[1731094618674,0.01,2955.9,2954.6,3.0]
[1731094618985,0.01,2955.9,2954.7,3.0]
[1731094620353,0.01,2955.9,2954.6,6.65502675]
[1731094620853,0.01,2955.9,2955.3,3.0]
[1731094621062,0.01,2955.9,2954.9,3.0]
[1731094621595,0.02,2956.2,2954.9,3.0]
[1731094621784,0.01,2955.9,2954.9,3.0]
[1731094622168,0.01,2955.9,2954.7,3.556]
[1731094622496,0.01,2955.9,2955.3,3.0]
[1731094622790,0.01,2955.9,2954.9,3.0]
[1731094623486,0.01,2955.9,2954.8,3.0]
[1731094623688,0.01,2955.9,2954.8,6.556]
[1731094624561,0.01,2955.9,2955.3,3.0]
[1731094624968,0.01,2955.9,2954.8,3.0]
[1731094625201,0.01,2955.9,2954.8,6.556]
[1731094625768,0.02,2955.9,2954.6,3.0]
[1731094626002,0.02,2955.9,2954.4,1.21637302]
[1731094626249,0.02,2955.9,2954.5,0.90111154]
[1731094626691,0.02,2955.9,2954.7,3.0]
[1731094627078,0.02,2955.9,2954.5,0.90111154]
[1731094627612,0.02,2955.9,2955.3,3.0]
[1731094627796,0.01,2955.5,2954.4,0.10023792]
[1731094628118,0.01,2955.3,2954.2,0.35296479]
[1731094628419,0.01,2955.1,2954.2,0.45493821]
[1731094628574,0.01,2955.1,2954.2,0.95007673]
[1731094630002,0.02,2955.4,2954.3,0.06767555]
[1731094630382,0.02,2955.4,2954.2,0.95007673]
[1731094630579,0.02,2955.4,2954.2,3.45493821]
[1731094630780,0.02,2955.4,2954.2,0.45493821]
[1731094631351,0.01,2955.1,2954.2,0.35296479]
[1731094631530,0.02,2956.1,2954.2,0.35296479]
[1731094631531,0.02,2954.9,2954.2,0.35296479]
[1731094634217,0.02,2954.9,2954.3,0.06768342]
[1731094634658,0.02,2954.9,2954.2,0.35296479]
[1731094636068,0.01,2954.7,2954.2,0.35296479]
[1731094636245,0.02,2954.7,2953.2,4.3068]
[1731094636443,0.02,2954.7,2953.2,4.71277302]
[1731094636662,0.02,2954.7,2953.8,0.35310089]
[1731094636846,0.02,2954.7,2953.3,0.90111154]
[1731094637166,0.02,2954.7,2953.6,0.35310067]
[1731094639781,0.01,2954.5,2953.6,0.35310067]
[1731094641131,0.01,2954.3,2953.6,0.35310067]
[1731094644895,0.01,2954.3,2953.4,0.10273322]
[1731094645079,0.01,2954.3,2953.3,0.40597302]
[1731094645251,0.02,2953.9,2952.5,3.556]
[1731094645453,3.0,2955.2,2952.8,4.3398]
[1731094645454,0.01,2954.2,2952.8,4.3398]
[1731094645657,0.02,2954.3,2953.0,3.556]
[1731094646291,0.01,2954.3,2953.0,3.556]
[1731094646598,0.01,2954.5,2953.3,3.0]
[1731094646599,0.02,2954.5,2953.3,3.0]
[1731094646806,0.01,2954.8,2953.5,3.0]
[1731094647093,0.01,2954.8,2953.7,3.556]
[1731094647393,0.01,2955.3,2954.0,3.556]
[1731094647598,0.01,2955.4,2954.1,6.556]
[1731094647809,0.01,2955.7,2954.2,0.06766917]
[1731094647963,0.02,2956.1,2954.7,3.0]
[1731094648162,0.02,2956.1,2954.9,3.7794]
[1731094648461,0.01,2955.9,2954.9,3.7794]
[1731094648984,0.01,2955.8,2954.6,3.0]
[1731094649181,0.01,2955.8,2954.4,0.7861]
[1731094650220,0.01,2955.8,2954.4,1.21465635]
[1731094650524,0.01,2955.8,2954.4,1.31475912]
[1731094650881,0.02,2956.4,2954.6,0.7674]
[1731094651188,1.10850036,2957.5,2955.9,0.7674]
[1731094651189,0.01,2957.0,2955.9,0.7674]
[1731094651493,0.05073186,2957.5,2955.9,0.7674]
[1731094651494,0.06073186,2957.5,2956.0,0.06763257]
[1731094652198,0.01,2957.8,2956.0,0.55]
[1731094652394,0.01,2958.1,2956.2,0.55]
[1731094652594,0.01,2958.2,2956.4,0.55]
[1731094652814,0.01,2958.3,2956.4,3.55]
[1731094653187,0.01,2958.3,2956.4,3.95]
[1731094653681,0.01,2958.4,2956.4,0.4]
[1731094653682,0.01,2957.9,2956.4,0.4]
[1731094653910,0.01,2957.7,2956.4,0.4]
[1731094654222,0.01,2957.5,2956.4,0.4]
[1731094654596,0.01,2957.4,2956.4,0.4]
[1731094654918,0.01,2957.4,2956.4,0.49780262]
[1731094655300,0.01,2957.5,2956.4,0.49780262]
[1731094655621,0.01,2957.4,2956.4,0.49780262]
[1731094655828,0.01,2957.5,2956.4,0.4]
[1731094655982,0.01,2957.2,2956.4,0.4]
[1731094658328,0.01,2956.9,2956.4,0.4]
[1731094660522,0.01,2956.8,2956.4,0.4]
[1731094661291,0.01,2956.5,2956.4,0.4]
[1731094661513,0.01,2956.8,2956.4,0.4]
[1731094661714,0.01,2956.5,2956.4,0.4]
[1731094662189,0.01,2956.7,2956.4,0.4]
[1731094662384,0.01,2956.8,2956.4,0.4]
[1731094663418,0.02,2956.6,2956.4,0.4]
[1731094664852,0.01,2956.9,2956.4,0.4]
[1731094665050,3.45126589,2958.2,2956.4,0.4]
[1731094665051,0.01,2957.1,2956.4,0.4]
[1731094665348,0.01,2956.9,2956.5,0.06763036]
[1731094665551,0.01,2956.9,2956.4,0.4]
[1731094666947,0.01,2957.2,2956.4,0.4]
[1731094667117,0.01,2957.1,2956.5,0.06762881]
[1731094667315,0.01,2957.1,2956.4,0.4]
[1731094668133,0.01,2957.1,2956.5,3.0]
[1731094668342,0.01,2957.1,2956.4,0.4]
[1731094668520,0.01,2957.1,2956.5,3.0]
[1731094668771,0.01,2957.1,2956.4,0.4]
[1731094669319,0.01,2957.3,2956.5,3.0]
[1731094669525,0.01,2957.5,2956.4,0.4]
[1731094670017,0.03577246,2958.9,2957.0,3.01]
[1731094670343,0.43364592,2958.9,2957.0,3.01]
[1731094670542,0.43364592,2958.9,2957.0,0.01]
[1731094670912,0.43364592,2958.9,2957.0,3.0]
[1731094671127,0.43364592,2958.9,2956.8,0.01]
[1731094671128,0.55,2958.6,2956.6,0.01]
[1731094671445,0.55,2958.4,2956.6,0.01]
[1731094671805,0.55,2958.4,2957.0,3.0]
[1731094672452,3.94296215,2958.3,2956.5,0.01]
[1731094672641,0.55,2958.2,2956.5,0.01]
[1731094672949,0.55,2958.2,2956.6,3.0]
[1731094673153,0.44929622,2958.1,2956.5,0.01]
[1731094673450,0.55,2958.0,2956.6,3.0]
[1731094673643,0.55,2958.0,2956.5,0.01]
[1731094674053,0.55,2958.0,2956.8,0.01]
[1731094674545,0.55,2958.0,2956.5,0.01]
[1731094674748,0.55,2958.0,2956.6,3.0]
[1731094674947,0.55,2958.2,2956.5,0.01]
[1731094675247,0.55,2958.0,2956.6,3.01]
[1731094675624,0.55,2958.0,2956.6,0.01]
[1731094676133,0.55,2958.2,2956.5,0.01]
[1731094677154,0.55,2958.2,2956.6,3.0]
[1731094677447,0.55,2958.0,2956.5,0.01]
[1731094678049,0.55,2958.0,2956.5,0.07762701]
[1731094678349,0.55,2958.0,2956.5,0.01]
[1731094678562,0.55,2958.0,2956.6,3.0]
[1731094679556,0.55,2958.0,2956.5,0.01]
[1731094680131,0.55,2958.0,2956.6,3.0]